fUSD/lending_fUSD_20240531
["ID","MTS","AMOUNT","RATE_DAILY","PERIOD"]
[328287001,1717123832098,-155.39911701,0.00013998,2]
[328287002,1717123832108,-155.28529549,0.00013998,2]
[328287003,1717123832118,-205.21271833,0.00013998,2]
[328287004,1717123832127,-327.7158632,0.00013998,2]
[328287005,1717123832137,-155.20196209,0.00013998,2]
[328287006,1717123832146,-218.24542176,0.00013998,2]
[328287007,1717123832156,-155.49081804,0.00013998,2]
[328287008,1717123832165,-155.38086327,0.00013998,2]
[328287009,1717123832174,-644.39292773,0.00013998,2]
[328287010,1717123832184,-408.36767081,0.00013998,2]
[328287011,1717123832193,-1065.47621405,0.00013998,2]
[328287012,1717123832202,-155.69351182,0.00013998,2]
[328287013,1717123832212,-1204.9826224,0.00013998,2]
[328287014,1717123832221,-324.41013187,0.00013998,2]
[328287015,1717123832233,-854.82014811,0.00013998,2]
[328287016,1717123832244,-251.97924442,0.00013998,2]
[328287017,1717123832254,-152.52075508,0.00013999,2]
[328287018,1717123832265,-860.81931082,0.00013999,2]
[328287019,1717123832275,-3150.00190413,0.00013999,2]
[328287020,1717123832286,-779.28,0.00013999,2]
[328287021,1717123832298,-704.92261432,0.00013999,2]
[328287022,1717123832309,-2332.32978955,0.00013999,2]
[328287023,1717123832320,-713.07366266,0.00013999,2]
[328287024,1717123832331,-893.59727248,0.00013999,2]
[328287025,1717123832343,-347.96815075,0.00013999,2]
[328287026,1717123832354,-363.76455997,0.00013999,2]
[328287027,1717123832365,-1901.72340631,0.00013999,2]
[328287028,1717123832376,-1157.61272561,0.00013999,2]
[328287029,1717123832387,-13908.88798086,0.00013999,2]
[328287030,1717123832398,-6441.85381203,0.00013999,2]
[328287031,1717123832410,-2837.73834161,0.00013999,2]
[328287032,1717123832419,-4413.11741635,0.00014,2]
[328287035,1717123832431,-387142.19932821,0.00014,2]
[328287037,1717123832441,-1557.28706139,0.00014,2]
[328287039,1717123832452,-809.73333754,0.00014,2]
[328287041,1717123832463,-251.61999996,0.00014,2]
[328287043,1717123832474,-672.3424,0.00014,2]
[328287045,1717123832485,-8501.16983801,0.00014,2]
[328287048,1717123832496,-580.86539022,0.00014,2]
[328287049,1717123832507,-44425.78850659,0.00014,2]
[328287050,1717123832518,-611.8,0.00014,2]
[328287051,1717123832529,-3164.75000067,0.00014,2]
[328287052,1717123832540,-4144.26708576,0.00014,2]
[328287053,1717123832551,-6044.72326032,0.00014,2]
[328287054,1717123832562,-500.77266238,0.00014,2]
[328287055,1717123832573,-9380.85,0.00014,2]
[328287056,1717123832584,-2874.64046281,0.00014,2]
[328287057,1717123832596,-35967.73760455,0.00014,2]
[328287058,1717123832607,-35356.645937,0.00014,2]
[328287060,1717123832618,-33872.9088855,0.00014,2]
[328287066,1717123832673,-597.34227907,0.00014,2]
[328287068,1717123832684,-2102.4993963,0.00014,2]
[328287070,1717123832695,-1132.39328229,0.00014,2]
[328287072,1717123832706,-174310.0772812,0.00014,2]
[328287074,1717123832716,-7151.862,0.00014,2]
[328287077,1717123832727,-2380.55745511,0.00014,2]
[328287079,1717123832738,-1966.22875406,0.00014,2]
[328287081,1717123832749,-6438.08321885,0.00014,2]
[328287083,1717123832759,-669.26451817,0.00014,2]
[328287112,1717123838006,-313.27,0.00014,2]
[328287113,1717123838018,-1070.58,0.00014,2]
[328287114,1717123838029,-2268.68664965,0.00014,2]
[328287115,1717123838041,-7969.17193469,0.00014,2]
[328287116,1717123838053,-3131.87472,0.00014,2]
[328287117,1717123838064,-368.83404149,0.00014,2]
[328287118,1717123838075,-286.3073085,0.00014,2]
[328287119,1717123838086,-8602.67733,0.00014,2]
[328287120,1717123838097,-1573.41555,0.00014,2]
[328287121,1717123838108,-1765.0,0.00014,2]
[328287122,1717123838118,-6931.66385052,0.00014,2]
[328287123,1717123838130,-1524.53646198,0.00014,2]
[328287124,1717123838140,-1973.84237263,0.00014,2]
[328287125,1717123838152,-731.70509038,0.00014,2]
[328287126,1717123838163,-7214.73959698,0.00014,2]
[328287127,1717123838174,-403.78743444,0.00014,2]
[328287128,1717123838186,-3441.7464166,0.00014,2]
[328287129,1717123838197,-27447.11317172,0.00014,2]
[328287130,1717123838208,-7098.9,0.00014,2]
[328287131,1717123838220,-286.15407179,0.00014,2]
[328287132,1717123838418,-19345.76533477,0.00014,2]
[328287195,1717123840688,-742.39808494,0.00014,2]
[328287200,1717123840701,-1578.71698897,0.00014,2]
[328287205,1717123841146,-954.51740152,0.00014,2]
[328287206,1717123841157,-291711.15320697,0.00014,2]
[328287207,1717123842027,-226559.21026727,0.00014,2]
[328287209,1717123842036,-835.68,0.00014,2]
[328287211,1717123842046,-164.5370238,0.00014047,2]
[328287213,1717123842055,-246.76,0.00014702,2]
[328287215,1717123842065,-499.99,0.00014702,2]
[328287217,1717123842074,-4400.18,0.00014702,2]
[328287219,1717123842083,-153.13,0.00014702,2]
[328287221,1717123842093,-156.01516224,0.00015,2]
[328287223,1717123842102,-166.89,0.00015341,2]
[328287225,1717123842111,-210.0,0.00015397,2]
[328287227,1717123842121,-166.89,0.00015541,2]
[328287229,1717123842130,-166.89,0.00015741,2]
[328287231,1717123842139,-166.89,0.0001594,2]
[328287233,1717123842148,-703.64,0.00016072,2]
[328287235,1717123842158,-166.89,0.0001614,2]
[328287237,1717123842168,-172.61,0.00016276,2]
[328287239,1717123842177,-173.9,0.00016438,2]
[328287241,1717123842187,-250.0,0.00016721,2]
[328287243,1717123842196,-206.0,0.00016936,2]
[328287245,1717123842205,-313.22,0.00017383,2]
[328287247,1717123842214,-172.87,0.00017596,2]
[328287249,1717123842223,-173.9,0.00017971,2]
[328287251,1717123842232,-787.44,0.00018412,2]
[328287253,1717123842241,-4047.89,0.0001842,2]
[328287255,1717123842251,-200.0,0.00018648,2]
[328287257,1717123842260,-660.35,0.00018718,2]
[328287259,1717123842269,-412.95268598,0.00019,2]
[328287261,1717123842278,-1481.9287542,0.00019,2]
[328287263,1717123842287,-3138.74,0.00019178,2]
[328287265,1717123842297,-3896.75366987,0.000192,2]
[328287267,1717123842306,-200.0,0.00019236,2]
[328287269,1717123842315,-358.21,0.00019301,2]
[328287271,1717123842325,-524.5,0.00019304,2]
[328287272,1717123842334,-173.9,0.00019504,2]
[328287274,1717123842343,-313.22,0.00019647,2]
[328287276,1717123842353,-177.37,0.00019863,2]
[328287277,1717123842362,-3652.07566405,0.0002,2]
[328287278,1717123842371,-19958.91,0.00020548,2]
[328287279,1717123842380,-173.9,0.00021036,3]
[328287280,1717123842389,-4047.89,0.0002116,2]
[328287281,1717123842398,-172.87,0.0002133,2]
[328287282,1717123842407,-2491.92,0.0002137,2]
[328287283,1717123842418,-524.5,0.00021718,2]
[328287284,1717123842428,-5031.5780041,0.0002189,2]
[328287286,1717123842437,-5000.0,0.0002189,2]
[328287288,1717123842446,-313.22,0.00021911,2]
[328287290,1717123842456,-250.0,0.00021918,2]
[328287292,1717123842466,-2000.0,0.00021918,2]
[328287294,1717123842475,-165.65,0.00021918,2]
[328287295,1717123842484,-193.53,0.00021918,2]
[328287296,1717123842494,-4224.17389677,0.00022,2]
[328287297,1717123842503,-150.0,0.00022029,2]
[328287298,1717123842512,-1439.79592191,0.00022042,2]
[328287299,1717123842521,-173.9,0.00022569,3]
[328287300,1717123842531,-250.0,0.00022577,2]
[328287301,1717123842540,-553.92318432,0.00022698,2]
[328287302,1717123842550,-168.521,0.00022961,2]
[328287303,1717123842560,-350.0,0.00023124,2]
[328287304,1717123842571,-1106.18,0.00023489,2]
[328287305,1717123842580,-4375.35,0.00023489,2]
[328287306,1717123842590,-450.0,0.00023672,2]
[328287307,1717123842599,-4047.89,0.00023899,2]
[328287308,1717123842608,-173.9,0.00024102,5]
[328287309,1717123842617,-524.5,0.00024131,2]
[328287310,1717123842627,-313.22,0.00024175,2]
[328287311,1717123842636,-550.0,0.0002422,2]
[328287312,1717123842645,-180.0,0.0002423,2]
[328287313,1717123842655,-155.62,0.00024384,2]
[328287314,1717123842665,-159.1,0.00024384,2]
[328287315,1717123842675,-156.68,0.00024384,2]
[328287316,1717123842683,-250.0,0.00024384,2]
[328287317,1717123842692,-1439.79592191,0.00024757,2]
[328287318,1717123842702,-302.4606668,0.00024768,2]
[328287319,1717123842711,-6812.63675364,0.000249,2]
[328287320,1717123842720,-164.5370238,0.000249,2]
[328287321,1717123842729,-204.65025987,0.000249,2]
[328287322,1717123842738,-199.60973745,0.000249,2]
[328287323,1717123842747,-1657.15620544,0.000249,2]
[328287324,1717123842756,-1000.0,0.00024921,2]
[328287325,1717123842765,-177.39,0.00024982,2]
[328287326,1717123842775,-158.06,0.0002499,2]
[328287327,1717123842784,-158.06,0.0002499,2]
[328287328,1717123842793,-1544.89791571,0.00025,9]
[328287329,1717123842803,-1050.0,0.00025,2]
[328287330,1717123842812,-4161.86594063,0.00025,2]
[328287331,1717123842822,-935.51486435,0.00025,2]
[328287334,1717123842831,-1622010.67964577,0.00025,2]
[328287337,1717123842841,-1879.69,0.00025,2]
[328287340,1717123842851,-2513.06,0.00025,2]
[328287342,1717123842864,-173.9,0.00025635,5]
[328287343,1717123842873,-163.81,0.0002589,2]
[328287344,1717123842882,-313.22,0.00026439,2]
[328287345,1717123842892,-524.5,0.00026544,2]
[328287346,1717123842902,-178.99,0.00026812,2]
[328287347,1717123842912,-173.9,0.00027168,7]
[328287348,1717123842921,-391.01,0.00027187,2]
[328287349,1717123842931,-391.01,0.00027194,2]
[328287350,1717123842941,-391.01,0.00027201,2]
[328287351,1717123842951,-391.01,0.00027208,2]
[328287352,1717123842960,-391.01,0.00027216,2]
[328287353,1717123842969,-391.01,0.00027223,2]
[328287354,1717123842978,-391.01,0.0002723,2]
[328287355,1717123842987,-391.01,0.00027237,2]
[328287356,1717123842999,-391.01,0.00027244,2]
[328287357,1717123843009,-391.01,0.00027251,2]
[328287358,1717123843018,-391.01,0.00027259,2]
[328287359,1717123843027,-391.01,0.00027266,2]
[328287360,1717123843036,-391.01,0.00027273,2]
[328287361,1717123843045,-391.01,0.0002728,2]
[328287362,1717123843054,-391.01,0.00027287,2]
[328287363,1717123843064,-391.01,0.00027294,2]
[328287364,1717123843073,-391.01,0.00027301,2]
[328287365,1717123843082,-391.01,0.00027309,2]
[328287366,1717123843091,-391.01,0.00027316,2]
[328287367,1717123843100,-391.01,0.00027323,2]
[328287368,1717123843109,-815.14613129,0.0002739,2]
[328287369,1717123843118,-202.04,0.000274,2]
[328287370,1717123843128,-202.04,0.000274,2]
[328287371,1717123843137,-202.04,0.000274,2]
[328287372,1717123843145,-202.04,0.000274,2]
[328287373,1717123843154,-202.04,0.000274,2]
[328287374,1717123843164,-202.04,0.000274,2]
[328287375,1717123843173,-202.04,0.000274,2]
[328287376,1717123843183,-202.04,0.000274,2]
[328287377,1717123843192,-202.04,0.000274,2]
[328287378,1717123843202,-202.04,0.000274,2]
[328287379,1717123843211,-1439.79592191,0.00027471,2]
[328287380,1717123843220,-158.06,0.0002799,2]
[328287381,1717123843230,-199.99999801,0.00028,5]
[328287382,1717123843239,-1879.69,0.00028,2]
[328287383,1717123843248,-2513.06,0.00028,2]
[328287384,1717123843257,-1000.0,0.00028036,2]
[328287385,1717123843266,-251.53840405,0.00028355,2]
[328287386,1717123843275,-400.41,0.0002837,2]
[328287387,1717123843285,-731.70509038,0.00028372,14]
[328287388,1717123843294,-173.9,0.00028701,7]
[328287389,1717123843304,-313.22,0.00028703,2]
[328287390,1717123843313,-151.0,0.00028813,7]
[328287391,1717123843322,-2806.46221743,0.00028934,2]
[328287392,1717123843331,-524.5,0.00028957,2]
[328287393,1717123843340,-5000.0,0.00029,7]
[328287394,1717123843349,-1657.15620544,0.0002905,2]
[328287395,1717123843358,-991.857,0.00029082,2]
[328287396,1717123843367,-157.802,0.00029082,2]
[328287397,1717123843376,-166.312,0.00029082,2]
[328287398,1717123843385,-446.55,0.00029082,2]
[328287399,1717123843394,-824.143,0.00029082,2]
[328287400,1717123843404,-2428.397,0.00029082,2]
[328287401,1717123843414,-1671.885,0.00029082,2]
[328287402,1717123843423,-1304.0,0.00029082,2]
[328287403,1717123843432,-155.17,0.00029082,2]
[328287404,1717123843441,-221.0,0.00029082,2]
[328287405,1717123843450,-3212.468,0.00029082,2]
[328287406,1717123843459,-294.325,0.00029082,2]
[328287407,1717123843469,-5241.274,0.00029082,2]
[328287408,1717123843478,-5867.817,0.00029082,2]
[328287409,1717123843487,-1493.626,0.00029082,2]
[328287410,1717123843496,-414.788,0.00029082,2]
[328287411,1717123843505,-1063.0,0.00029082,2]
[328287412,1717123843514,-151.0,0.00029401,4]
[328287413,1717123843524,-2121.565993,0.000295,2]
[328287414,1717123843533,-157.48160741,0.00029758,2]
[328287415,1717123843542,-3182.34899,0.000298,2]
[328287416,1717123843550,-158.971759,0.00029815,2]
[328287417,1717123843559,-2029.5366306,0.000299,2]
[328287418,1717123843569,-155.84906222,0.00029973,2]
[328287419,1717123843578,-2231.12284286,0.0003,3]
[328287420,1717123843587,-5717.25271763,0.0003,2]
[328287421,1717123843596,-1137.08156715,0.0003,2]
[328287422,1717123843605,-4243.131987,0.0003,2]
[328287423,1717123843614,-151.0,0.00030001,2]
[328287424,1717123843623,-2513.06,0.000301,2]
[328287425,1717123843632,-1439.79592191,0.00030185,2]
[328287426,1717123843641,-5303.914983,0.000302,2]
[328287427,1717123843650,-1879.69,0.000302,2]
[328287428,1717123843659,-173.9,0.00030233,7]
[328287429,1717123843669,-7425.480977,0.000305,2]
[328287430,1717123843678,-158.971759,0.00030561,2]
[328287431,1717123843688,-8486.263974,0.000308,2]
[328287432,1717123843697,-157.48160741,0.00030819,7]
[328287433,1717123843707,-158.49161405,0.00030838,7]
[328287434,1717123843716,-313.22,0.00030967,2]
[328287449,1717123843924,-1000.0,0.00031151,2]
[328287451,1717123843934,-156.35140378,0.000312,2]
[328287453,1717123843945,-158.971759,0.00031306,2]
[328287455,1717123843954,-155.35836119,0.00031589,7]
[328287457,1717123843963,-173.9,0.00031766,7]
[328287459,1717123843972,-500.0,0.00032,10]
[328287461,1717123843982,-976.0,0.00032082,2]
[328287462,1717123843992,-446.0,0.00032082,2]
[328287463,1717123844001,-808.0,0.00032082,2]
[328287464,1717123844011,-1652.0,0.00032082,2]
[328287465,1717123844020,-967.003,0.00032082,2]
[328287466,1717123844030,-150.0,0.00032082,2]
[328287467,1717123844040,-216.0,0.00032082,2]
[328287468,1717123844049,-3168.0,0.00032082,2]
[328287469,1717123844059,-5144.0,0.00032082,2]
[328287470,1717123844068,-289.0,0.00032082,2]
[328287471,1717123844077,-5770.0,0.00032082,2]
[328287472,1717123844086,-1468.0,0.00032082,2]
[328287473,1717123844095,-1063.0,0.00032082,2]
[328287474,1717123844105,-2513.06,0.000321,2]
[328287475,1717123844114,-157.48160741,0.00032143,7]
[328287476,1717123844124,-155.84906222,0.00032254,7]
[328287477,1717123844133,-1879.69,0.000325,2]
[328287478,1717123844143,-1046.26227,0.0003255,2]
[328287479,1717123844152,-1631.53676646,0.00032745,2]
[328287480,1717123844162,-158.10984236,0.00032745,2]
[328287481,1717123844171,-153.5885607,0.00032776,4]
[328287482,1717123844180,-1006.56,0.000328,2]
[328287483,1717123844190,-470.76650129,0.00032846,2]
[328287484,1717123844199,-153.5885607,0.00032847,4]
[328287485,1717123844208,-603.88268417,0.00032868,2]
[328287486,1717123844217,-106776.68021034,0.00032875,10]
[328287487,1717123844226,-220.25978222,0.00032876,5]
[328287488,1717123844235,-522.24925485,0.00032876,11]
[328287489,1717123844244,-496.68162383,0.00032876,11]
[328287490,1717123844253,-625.53862055,0.00032876,11]
[328287491,1717123844263,-502.64613969,0.00032876,11]
[328287492,1717123844272,-506.56154499,0.00032876,11]
[328287493,1717123844281,-500.0,0.00032876,11]
[328287494,1717123844290,-500.0,0.00032876,11]
[328287495,1717123844300,-507.35603285,0.00032876,11]
[328287496,1717123844309,-501.77487537,0.00032876,11]
[328287497,1717123844318,-519.08481573,0.00032876,11]
[328287498,1717123844327,-521.55988775,0.00032876,11]
[328287499,1717123844336,-500.0,0.00032876,11]
[328287500,1717123844346,-500.0,0.00032876,11]
[328287501,1717123844357,-500.0,0.00032876,11]
[328287502,1717123844367,-500.0,0.00032876,11]
[328287503,1717123844377,-500.0,0.00032876,11]
[328287504,1717123844386,-500.0,0.00032876,11]
[328287505,1717123844395,-503.43010088,0.00032876,11]
[328287506,1717123844404,-496.99132577,0.00032876,11]
[328287507,1717123844413,-500.0,0.00032876,11]
[328287508,1717123844423,-559.97575089,0.00032876,11]
[328287509,1717123844432,-550.88287219,0.00032876,11]
[328287510,1717123844441,-500.0,0.00032876,11]
[328287511,1717123844450,-380.63686948,0.00032876,11]
[328287512,1717123844459,-500.0,0.00032876,11]
[328287513,1717123844468,-500.0,0.00032876,11]
[328287514,1717123844477,-500.0,0.00032876,2]
[328287515,1717123844486,-500.0,0.00032876,2]
[328287516,1717123844496,-500.0,0.00032876,2]
[328287517,1717123844505,-500.0,0.00032876,2]
[328287518,1717123844514,-500.0,0.00032876,11]
[328287519,1717123844523,-500.0,0.00032876,2]
[328287520,1717123844532,-500.0,0.00032876,11]
[328287521,1717123844541,-500.0,0.00032876,11]
[328287522,1717123844550,-500.0,0.00032876,11]
[328287523,1717123844559,-500.0,0.00032876,11]
[328287524,1717123844568,-515.38082383,0.00032876,11]
[328287525,1717123844577,-500.0,0.00032876,11]
[328287526,1717123844586,-500.0,0.00032876,11]
[328287527,1717123844596,-500.0,0.00032876,11]
[328287528,1717123844605,-500.0,0.00032876,11]
[328287529,1717123844614,-500.0,0.00032876,11]
[328287530,1717123844623,-500.0,0.00032876,11]
[328287531,1717123844632,-500.0,0.00032876,11]
[328287532,1717123844641,-500.0,0.00032876,11]
[328287533,1717123844650,-500.0,0.00032876,11]
[328287534,1717123844659,-500.0,0.00032876,11]
[328287535,1717123844670,-503.93994055,0.00032876,11]
[328287536,1717123844679,-514.60359621,0.00032876,11]
[328287537,1717123844688,-500.0,0.00032876,11]
[328287538,1717123844697,-500.0,0.00032876,11]
[328287539,1717123844706,-542.06927275,0.00032876,11]
[328287540,1717123844715,-500.0,0.00032876,11]
[328287541,1717123844723,-500.0,0.00032876,11]
[328287542,1717123844732,-500.0,0.00032876,11]
[328287543,1717123844741,-500.0,0.00032876,11]
[328287544,1717123844750,-500.0,0.00032876,11]
[328287545,1717123844759,-500.0,0.00032876,11]
[328287546,1717123844767,-500.0,0.00032876,11]
[328287547,1717123844776,-500.0,0.00032876,11]
[328287548,1717123844785,-500.0,0.00032876,11]
[328287549,1717123844794,-375.32439138,0.00032876,11]
[328287550,1717123844803,-500.0,0.00032876,11]
[328287551,1717123844811,-500.0,0.00032876,11]
[328287552,1717123844820,-500.0,0.00032876,11]
[328287553,1717123844829,-500.0,0.00032876,11]
[328287554,1717123844838,-170.12,0.00032876,11]
[328287555,1717123844847,-500.0,0.00032876,11]
[328287556,1717123844859,-500.0,0.00032876,11]
[328287557,1717123844869,-500.0,0.00032876,11]
[328287558,1717123844878,-500.0,0.00032876,11]
[328287559,1717123844887,-500.0,0.00032876,11]
[328287560,1717123844896,-500.0,0.00032876,11]
[328287561,1717123844906,-414.4738215,0.00032876,11]
[328287562,1717123844916,-500.0,0.00032876,11]
[328287563,1717123844925,-516.18703209,0.00032876,11]
[328287564,1717123844935,-500.0,0.00032876,11]
[328287565,1717123844944,-500.0,0.00032876,11]
[328287566,1717123844953,-500.0,0.00032876,11]
[328287567,1717123844961,-500.0,0.00032876,11]
[328287568,1717123844970,-500.0,0.00032876,11]
[328287569,1717123844979,-500.0,0.00032876,11]
[328287570,1717123844988,-500.0,0.00032876,11]
[328287571,1717123844998,-500.0,0.00032876,11]
[328287572,1717123845008,-500.0,0.00032876,11]
[328287573,1717123845017,-500.0,0.00032876,11]
[328287574,1717123845026,-511.04625897,0.00032876,11]
[328287575,1717123845036,-513.08730036,0.00032876,11]
[328287576,1717123845045,-514.08813181,0.00032876,11]
[328287577,1717123845054,-513.6617674,0.00032876,11]
[328287578,1717123845064,-500.0,0.00032876,11]
[328287579,1717123845073,-500.0,0.00032876,11]
[328287580,1717123845083,-500.0,0.00032876,11]
[328287581,1717123845092,-500.0,0.00032876,11]
[328287582,1717123845102,-500.0,0.00032876,11]
[328287583,1717123845112,-500.0,0.00032876,11]
[328287584,1717123845121,-312.68028284,0.00032876,11]
[328287585,1717123845130,-500.0,0.00032876,11]
[328287586,1717123845139,-500.0,0.00032876,11]
[328287587,1717123845148,-500.0,0.00032876,11]
[328287588,1717123845157,-500.0,0.00032876,11]
[328287589,1717123845167,-500.0,0.00032876,11]
[328287590,1717123845176,-512.91177932,0.00032876,11]
[328287591,1717123845184,-492.02147548,0.00032876,11]
[328287592,1717123845194,-500.0,0.00032876,11]
[328287593,1717123845203,-500.0,0.00032876,11]
[328287594,1717123845212,-500.0,0.00032876,11]
[328287595,1717123845221,-517.637977,0.00032876,11]
[328287596,1717123845230,-500.0,0.00032876,11]
[328287597,1717123845239,-500.0,0.00032876,11]
[328287598,1717123845248,-239.12,0.00032876,11]
[328287599,1717123845256,-500.0,0.00032876,11]
[328287600,1717123845265,-500.0,0.00032876,11]
[328287601,1717123845274,-232.53508882,0.00032876,11]
[328287602,1717123845283,-591.1437683,0.00032876,11]
[328287603,1717123845292,-514.01170877,0.00032876,11]
[328287604,1717123845301,-500.0,0.00032876,11]
[328287605,1717123845310,-500.0,0.00032876,11]
[328287606,1717123845319,-500.0,0.00032876,11]
[328287607,1717123845328,-500.0,0.00032876,11]
[328287608,1717123845337,-500.0,0.00032876,11]
[328287609,1717123845346,-500.0,0.00032876,11]
[328287610,1717123845355,-500.0,0.00032876,11]
[328287611,1717123845364,-500.0,0.00032876,11]
[328287612,1717123845374,-500.0,0.00032876,11]
[328287613,1717123845383,-500.0,0.00032876,11]
[328287614,1717123845392,-513.28064377,0.00032876,11]
[328287615,1717123845401,-500.0,0.00032876,11]
[328287616,1717123845410,-500.0,0.00032876,11]
[328287617,1717123845420,-500.0,0.00032876,11]
[328287618,1717123845429,-500.0,0.00032876,11]
[328287619,1717123845438,-500.0,0.00032876,11]
[328287620,1717123845447,-500.0,0.00032876,11]
[328287621,1717123845456,-284.26,0.00032876,11]
[328287622,1717123845465,-513.90133899,0.00032876,11]
[328287623,1717123845474,-417.47644949,0.00032876,11]
[328287624,1717123845483,-500.0,0.00032876,11]
[328287625,1717123845493,-510.79891116,0.00032876,11]
[328287626,1717123845502,-512.30680659,0.00032876,11]
[328287627,1717123845511,-545.56069375,0.00032876,11]
[328287628,1717123845520,-500.0,0.00032876,11]
[328287629,1717123845529,-500.0,0.00032876,11]
[328287630,1717123845538,-500.0,0.00032876,11]
[328287631,1717123845547,-500.0,0.00032876,11]
[328287632,1717123845556,-500.0,0.00032876,11]
[328287633,1717123845566,-506.76004157,0.00032876,11]
[328287634,1717123845576,-500.0,0.00032876,11]
[328287635,1717123845585,-500.0,0.00032876,11]
[328287636,1717123845595,-500.0,0.00032876,11]
[328287637,1717123845604,-500.0,0.00032876,11]
[328287638,1717123845613,-514.76600752,0.00032876,11]
[328287639,1717123845622,-513.89607861,0.00032876,11]
[328287640,1717123845631,-500.0,0.00032876,11]
[328287641,1717123845640,-500.0,0.00032876,11]
[328287642,1717123845650,-234.69954696,0.00032876,11]
[328287643,1717123845659,-500.0,0.00032876,11]
[328287644,1717123845669,-519.91793764,0.00032876,11]
[328287645,1717123845678,-500.0,0.00032876,11]
[328287646,1717123845687,-500.0,0.00032876,11]
[328287647,1717123845696,-500.0,0.00032876,11]
[328287648,1717123845705,-503.87551966,0.00032876,11]
[328287649,1717123845715,-500.0,0.00032876,11]
[328287650,1717123845724,-591.18336561,0.00032876,11]
[328287651,1717123845734,-500.0,0.00032876,11]
[328287652,1717123845743,-500.0,0.00032876,11]
[328287653,1717123845753,-500.0,0.00032876,11]
[328287654,1717123845762,-467.17040353,0.00032876,11]
[328287655,1717123845771,-500.0,0.00032876,11]
[328287656,1717123845780,-500.0,0.00032876,11]
[328287657,1717123845789,-500.0,0.00032876,11]
[328287658,1717123845798,-500.0,0.00032876,11]
[328287659,1717123845807,-500.0,0.00032876,11]
[328287660,1717123845817,-500.0,0.00032876,11]
[328287661,1717123845826,-500.0,0.00032876,11]
[328287662,1717123845835,-500.0,0.00032876,11]
[328287663,1717123845844,-535.90950674,0.00032876,11]
[328287664,1717123845854,-500.0,0.00032876,11]
[328287665,1717123845867,-500.0,0.00032876,11]
[328287666,1717123845876,-500.0,0.00032876,11]
[328287667,1717123845885,-500.0,0.00032876,11]
[328287668,1717123845895,-500.0,0.00032876,11]
[328287669,1717123845905,-500.0,0.00032876,11]
[328287670,1717123845916,-500.0,0.00032876,11]
[328287671,1717123845925,-500.0,0.00032876,11]
[328287672,1717123845934,-500.0,0.00032876,11]
[328287673,1717123845945,-181.51739658,0.00032876,11]
[328287674,1717123845954,-500.0,0.00032876,11]
[328287675,1717123845963,-500.0,0.00032876,11]
[328287676,1717123845973,-500.0,0.00032876,11]
[328287677,1717123845982,-500.0,0.00032876,11]
[328287678,1717123845991,-500.0,0.00032876,11]
[328287679,1717123846001,-500.0,0.00032876,11]
[328287680,1717123846011,-635.70295715,0.00032876,11]
[328287681,1717123846020,-500.0,0.00032876,11]
[328287682,1717123846028,-161.6651358,0.00032876,11]
[328287683,1717123846038,-500.0,0.00032876,11]
[328287684,1717123846047,-500.0,0.00032876,11]
[328287685,1717123846056,-500.0,0.00032876,11]
[328287686,1717123846065,-500.0,0.00032876,11]
[328287687,1717123846074,-521.51165135,0.00032876,11]
[328287688,1717123846083,-500.0,0.00032876,11]